fUSD/lending_fUSD_20250804
["ID","MTS","AMOUNT","RATE_DAILY","PERIOD"]
[377199656,1754289033556,-1045.23348684,0.00036144,2]
[377199657,1754289033569,-542.47205755,0.00036144,120]
[377199658,1754289033578,-500.48337673,0.00036144,2]
[377199659,1754289033588,-200.92356782,0.00036144,2]
[377199660,1754289033597,-185.02729312,0.00036144,4]
[377199661,1754289033607,-544.01749421,0.00036173,5]
[377199662,1754289033616,-150.3,0.00036233,60]
[377199663,1754289033721,-850.52,0.00036242,2]
[377199664,1754289033732,-990.9968,0.0003626,2]
[377199665,1754289033741,-850.52,0.00036261,2]
[377199666,1754289033751,-500.0,0.00036273,5]
[377199667,1754289033760,-850.52,0.0003628,2]
[377199668,1754289033769,-638.01,0.00036291,2]
[377199669,1754289033779,-850.52,0.00036299,2]
[377199670,1754289033788,-850.52,0.00036318,2]
[377199671,1754289033799,-150.3,0.00036333,60]
[377199672,1754289033813,-850.52,0.00036337,2]
[377199673,1754289033825,-850.52,0.00036356,2]
[377199674,1754289033834,-850.52,0.00036375,2]
[377199675,1754289033843,-850.52,0.00036394,2]
[377199676,1754289033853,-850.52,0.00036413,2]
[377199677,1754289033863,-850.52,0.00036432,2]
[377199678,1754289033872,-150.3,0.00036433,60]
[377199679,1754289033882,-850.52,0.00036451,2]
[377199680,1754289033891,-850.52,0.0003647,2]
[377199681,1754289033901,-850.52,0.00036489,2]
[377199682,1754289033910,-850.52,0.00036508,2]
[377199683,1754289033920,-850.52,0.00036528,2]
[377199684,1754289033929,-150.3,0.00036533,60]
[377199685,1754289033939,-850.52,0.00036547,2]
[377199686,1754289033948,-850.52,0.00036566,2]
[377199687,1754289033959,-850.52,0.00036585,2]
[377199688,1754289033968,-850.52,0.00036604,2]
[377199689,1754289033978,-150.3,0.00036633,60]
[377199690,1754289033987,-206.9700337,0.0003666,120]
[377199691,1754289033996,-150.3,0.00036733,60]
[377199692,1754289034005,-500.0,0.00036821,5]
[377199693,1754289034015,-150.3,0.00036833,60]
[377199694,1754289034024,-150.3,0.00036933,60]
[377199695,1754289034034,-1367.99843694,0.00037,30]
[377199696,1754289034043,-150.3,0.00037033,60]
[377199697,1754289034052,-150.3,0.00037133,60]
[377199698,1754289034062,-150.3,0.00037233,60]
[377199699,1754289034071,-150.3,0.00037333,60]
[377199700,1754289034080,-280.0,0.000374,30]
[377199701,1754289034089,-150.3,0.00037433,60]
[377199702,1754289034098,-150.3,0.00037533,60]
[377199703,1754289034108,-183.22,0.00037623,2]
[377199704,1754289034118,-150.3,0.00037633,60]
[377199705,1754289034127,-150.3,0.00037733,60]
[377199706,1754289034137,-150.3,0.00037833,60]
[377199707,1754289034147,-197.61418236,0.0003788,2]
[377199708,1754289034157,-150.3,0.00037933,60]
[377199709,1754289034166,-507.78598705,0.00037999,120]
[377199710,1754289034176,-638.01,0.00038022,2]
[377199711,1754289034186,-150.3,0.00038033,60]
[377199712,1754289034195,-150.3,0.00038133,60]
[377199713,1754289034205,-150.3,0.00038233,60]
[377199714,1754289034216,-150.3,0.00038333,60]
[377199715,1754289034225,-150.3,0.00038433,120]
[377199716,1754289034235,-1000.0,0.00038478,2]
[377199717,1754289034245,-150.3,0.00038533,120]
[377199718,1754289034254,-150.3,0.00038633,120]
[377199719,1754289034263,-150.3,0.00038733,120]
[377199720,1754289034273,-150.3,0.00038833,120]
[377199721,1754289034282,-158.8,0.00038925,2]
[377199722,1754289034291,-150.3,0.00038933,120]
[377199723,1754289034301,-151.0,0.00039,120]
[377199724,1754289034310,-500.4573502,0.00039,120]
[377199725,1754289034320,-1130.46621362,0.00039,120]
[377199726,1754289034329,-150.3,0.00039033,120]
[377199727,1754289034339,-150.3,0.00039133,120]
[377199728,1754289034349,-150.3,0.00039233,120]
[377199729,1754289034359,-150.3,0.00039333,120]
[377199730,1754289034370,-150.3,0.00039433,120]
[377199731,1754289034381,-407.0,0.00039519,15]
[377199732,1754289034391,-150.3,0.00039533,120]
[377199733,1754289034400,-150.3,0.00039633,120]
[377199734,1754289034412,-150.3,0.00039733,120]
[377199735,1754289034423,-638.01,0.00039752,2]
[377199736,1754289034434,-173.0,0.000398,120]
[377199737,1754289034444,-150.3,0.00039833,120]
[377199738,1754289034454,-151.0,0.000399,120]
[377199739,1754289034464,-150.3,0.00039933,120]
[377199740,1754289034473,-1010.39855244,0.0003997,15]
[377199741,1754289034483,-862.97,0.0004,120]
[377199742,1754289034492,-712.58,0.0004,120]
[377199743,1754289034501,-520.371627,0.0004,8]
[377199744,1754289034510,-850.1903,0.0004,120]
[377199745,1754289034520,-477.12749073,0.0004,30]
[377199746,1754289034531,-411.85936016,0.0004,7]
[377199747,1754289034540,-595.94240256,0.0004,2]
[377199748,1754289034551,-214.66429982,0.0004,120]
[377199749,1754289034560,-641.18622053,0.0004,120]
[377199750,1754289034570,-999.99999906,0.0004,120]
[377199751,1754289034580,-953.84676021,0.0004,7]
[377199752,1754289034589,-201.51603211,0.0004,30]
[377199753,1754289034600,-985.64425935,0.0004,20]
[377199754,1754289034609,-382.40193638,0.0004,2]
[377199755,1754289034619,-421.2293603,0.0004,30]
[377199756,1754289034629,-509.02310439,0.0004,120]
[377199757,1754289034638,-471.45865538,0.0004,120]
[377199758,1754289034648,-214.32055557,0.0004,2]
[377199759,1754289034658,-718.36176626,0.0004,120]
[377199760,1754289034669,-604.72096657,0.0004,30]
[377199761,1754289034678,-1006.46859127,0.0004,14]
[377199762,1754289034688,-101.82189431,0.0004,120]
[377199763,1754289034711,-407.07572333,0.0004,120]
[377199764,1754289034720,-900.0,0.0004,41]
[377199765,1754289034730,-200.68747851,0.0004,120]
[377199766,1754289034740,-150.60333968,0.00040033,120]
[377199767,1754289034749,-151.0,0.000408,120]
[377199768,1754289034760,-348.70301418,0.000408,60]
[377199769,1754289034770,-169.0,0.00041,90]
[377199770,1754289034779,-368.23073988,0.00041,120]
[377199771,1754289034789,-396.66825978,0.00041,120]
[377199772,1754289034799,-234.21468827,0.00041,120]
[377199773,1754289034808,-517.52943248,0.00041,120]
[377199774,1754289034818,-500.0,0.00041096,10]
[377199775,1754289034832,-200.02,0.00041096,120]
[377199776,1754289034842,-200.0,0.00041096,20]
[377199777,1754289034851,-200.0,0.00041096,20]
[377199778,1754289034860,-200.0,0.00041096,20]
[377199779,1754289034871,-200.0,0.00041096,20]
[377199780,1754289034880,-200.0,0.00041096,20]
[377199781,1754289034889,-391.0,0.0004114,30]
[377199782,1754289034900,-638.01,0.00041482,120]
[377199783,1754289034910,-1000.21942331,0.00041644,10]
[377199784,1754289034920,-151.0,0.000417,120]
[377199785,1754289034929,-512.0,0.0004194,10]
[377199786,1754289034938,-299.13496466,0.00042,120]
[377199787,1754289034947,-566.13309864,0.00042,30]
[377199788,1754289034957,-480.43156679,0.00042,30]
[377199789,1754289034967,-835.37813002,0.00042,120]
[377199790,1754289034977,-717.86994955,0.00042,120]
[377199791,1754289034986,-582.0,0.000421,3]
[377199792,1754289034995,-118.36029671,0.00042121,120]
[377199793,1754289035033,-206.29637096,0.00042121,120]
[377199794,1754289035043,-373.05634559,0.000425,2]
[377199795,1754289035053,-151.0,0.000426,120]
[377199796,1754289035062,-2668.37943414,0.00042673,15]
[377199797,1754289035072,-150.0,0.00042703,120]
[377199798,1754289035081,-1000.0,0.00042753,2]
[377199799,1754289035090,-180.0,0.00042776,28]
[377199800,1754289035100,-158.8,0.00042817,30]
[377199801,1754289035109,-981.66072217,0.00042819,30]
[377199802,1754289035119,-979.37243482,0.0004282,2]
[377199803,1754289035128,-348.39000813,0.00042999,120]
[377199804,1754289035137,-214.0,0.00043,7]
[377199805,1754289035146,-522.44669773,0.00043,120]
[377199806,1754289035155,-229.72897462,0.00043,120]
[377199807,1754289035165,-195.01904909,0.00043,120]
[377199808,1754289035174,-1194.40796806,0.00043,30]
[377199809,1754289035184,-605.04085567,0.00043,120]
[377199810,1754289035193,-920.74066328,0.00043,120]
[377199811,1754289035202,-2668.37943411,0.00043145,15]
[377199812,1754289035212,-169.0,0.00043151,90]
[377199813,1754289035221,-167.21,0.00043199,120]
[377199814,1754289035230,-302.18430644,0.000432,120]
[377199815,1754289035239,-638.01,0.00043213,120]
[377199816,1754289035248,-512.0,0.00043445,10]
[377199817,1754289035257,-151.0,0.000435,120]
[377199818,1754289035266,-307.16,0.00043503,2]
[377199819,1754289035276,-150.99,0.00043513,2]
[377199820,1754289035285,-150.99,0.00043513,30]
[377199821,1754289035294,-8320.02,0.00043513,2]
[377199822,1754289035304,-1653.15,0.00043513,30]
[377199823,1754289035313,-5348.59,0.00043513,2]
[377199824,1754289035322,-999.99,0.00043513,2]
[377199825,1754289035332,-1537.99406162,0.00043513,2]
[377199826,1754289035344,-3485.49277757,0.00043513,2]
[377199827,1754289035450,-332.03316081,0.00043513,2]
[377199828,1754289035460,-2082.36506637,0.00043617,15]
[377199839,1754289037833,-586.01436774,0.00043617,15]
[377199840,1754289037843,-1008.87173319,0.000437,120]
[377199841,1754289037852,-37.76347812,0.000438,120]
[377199842,1754289037864,-283.02125,0.000438,120]
[377199843,1754289037874,-88.39412095,0.000438,30]
[377199844,1754289037886,-397.47798294,0.000438,30]
[377199845,1754289037895,-22.47675757,0.000438,119]
[377199846,1754289037907,-522.7367432,0.000438,119]
[377199847,1754289037918,-298.8487338,0.000438,119]
[377199861,1754289038205,-510.92986823,0.000438,119]
[377199863,1754289038214,-405.577,0.00043836,120]
[377199865,1754289038224,-1003.29639561,0.00044,15]
[377199867,1754289038234,-652.46739545,0.00044,120]
[377199869,1754289038243,-206.86235254,0.00044,120]
[377199871,1754289038253,-449.1960482,0.00044,120]
[377199873,1754289038263,-2668.37943411,0.00044089,15]
[377199876,1754289038272,-1000.0,0.0004419,14]
[377199878,1754289038281,-153.00328513,0.0004425,120]
[377199880,1754289038291,-305.39721356,0.00044383,120]
[377199882,1754289038300,-293.53544314,0.0004439,120]
[377199884,1754289038310,-336.39365751,0.000444,33]
[377199886,1754289038319,-151.0,0.000444,120]
[377199888,1754289038329,-2668.37943411,0.00044561,15]
[377199890,1754289038339,-150.0,0.00044681,120]
[377199892,1754289038349,-150.0,0.00044802,120]
[377199894,1754289038358,-195.04,0.00044853,2]
[377199896,1754289038367,-638.01,0.00044943,120]
[377199898,1754289038377,-512.0,0.0004495,11]
[377199900,1754289038387,-220.37995172,0.00044973,10]
[377199902,1754289038396,-5800.0,0.00044999,14]
[377199904,1754289038405,-486.06739081,0.00045,120]
[377199906,1754289038415,-175.0,0.00045,90]
[377199908,1754289038425,-371.80953503,0.00045,120]
[377199910,1754289038434,-524.48524192,0.00045,120]
[377199912,1754289038443,-209.95833796,0.00045,120]
[377199914,1754289038452,-1863.33514451,0.00045,120]
[377199915,1754289038463,-264.28950242,0.00045,120]
[377199917,1754289038473,-516.7055503,0.00045,120]
[377199919,1754289038482,-223.33369091,0.00045,120]
[377199921,1754289038492,-1168.5420667,0.00045,120]
[377199923,1754289038502,-505.22807118,0.00045,120]
[377199925,1754289038512,-1080.07696159,0.00045,30]
[377199927,1754289038522,-597.2141027,0.00045,10]
[377199929,1754289038532,-2072.16569029,0.00045,120]
[377199931,1754289038541,-2668.37943411,0.00045032,15]
[377199933,1754289038551,-407.0,0.00045092,120]
[377199935,1754289038560,-299.34,0.00045149,2]
[377199937,1754289038569,-500.0,0.00045213,2]
[377199939,1754289038579,-500.0,0.00045213,2]
[377199941,1754289038589,-500.0,0.00045213,2]
[377199943,1754289038599,-500.0,0.00045213,2]
[377199945,1754289038608,-551.22253752,0.00045213,2]
[377199946,1754289038624,-342.70210285,0.00045227,120]
[377199948,1754289038634,-548.0,0.00045254,60]
[377199950,1754289038643,-151.0,0.000453,120]
[377199952,1754289038653,-1197.66,0.00045438,120]
[377199954,1754289038663,-1179.29,0.00045493,120]
[377199955,1754289038672,-865.59667554,0.000455,120]
[377199956,1754289038682,-979.93954772,0.000455,120]
[377199957,1754289038691,-2668.37943411,0.00045504,15]
[377199958,1754289038701,-1179.29,0.00045521,120]
[377199959,1754289038711,-150.0,0.0004559,2]
[377199960,1754289038721,-175.0,0.00045685,90]
[377199961,1754289038731,-529.81302927,0.00045746,2]
[377199962,1754289038740,-1331.32324905,0.000459,120]
[377199963,1754289038750,-675.25190005,0.00045901,2]
[377199964,1754289038760,-166.34,0.00045957,2]
[377199965,1754289038770,-2668.37943411,0.00045976,15]
[377199966,1754289038780,-1000.0,0.00046,120]
[377199967,1754289038789,-500.0,0.00046,2]
[377199968,1754289038799,-1200.0,0.00046,2]
[377199969,1754289038809,-650.0,0.00046,2]
[377199970,1754289038822,-799.75991765,0.00046,120]
[377199971,1754289038832,-1000.0,0.00046,30]
[377199972,1754289038842,-673.0,0.00046,2]
[377199973,1754289038852,-400.0,0.00046027,120]
[377199974,1754289038863,-359.08,0.00046027,30]
[377199975,1754289038872,-185.05,0.00046039,120]
[377199976,1754289038882,-820.69077083,0.00046057,2]
[377199977,1754289038892,-690.4,0.00046078,30]
[377199978,1754289038904,-151.0,0.000462,120]
[377199979,1754289038914,-966.12964162,0.00046212,2]
[377199980,1754289038924,-500.0,0.000463,16]
[377199981,1754289038934,-359.08,0.00046301,30]
[377199982,1754289038943,-359.08,0.00046301,30]
[377199983,1754289038953,-359.08,0.00046301,30]
[377199984,1754289038964,-359.08,0.00046301,30]
[377199985,1754289038974,-1011.62402342,0.0004633,58]
[377199986,1754289038983,-1111.5685124,0.00046368,2]
[377199987,1754289038994,-1000.0,0.000464,16]
[377199988,1754289039003,-513.56151364,0.000464,120]
[377199989,1754289039013,-755.15705471,0.000464,120]
[377199990,1754289039023,-2668.37943411,0.00046448,15]
[377199991,1754289039033,-512.0,0.00046455,16]
[377199992,1754289039042,-1000.0,0.00046475,2]
[377199993,1754289039052,-2500.0,0.00046475,2]
[377199994,1754289039062,-1600.0,0.000465,16]
[377199995,1754289039072,-1179.29,0.00046521,120]
[377199996,1754289039082,-1179.29,0.00046521,120]
[377199997,1754289039092,-1257.00738318,0.00046523,2]
[377199998,1754289039101,-709.82,0.00046534,120]
[377199999,1754289039111,-2427.83118452,0.0004654,18]
[377200000,1754289039121,-400.0,0.00046575,120]
[377200001,1754289039132,-699.97,0.00046575,120]
[377200002,1754289039142,-831.36,0.00046575,120]
[377200003,1754289039152,-2794.9,0.00046575,14]
[377200004,1754289039162,-662.09,0.00046575,120]
[377200005,1754289039171,-4572.88,0.00046575,120]
[377200006,1754289039181,-400.0,0.00046575,120]
[377200007,1754289039190,-2770.29,0.00046575,120]
[377200008,1754289039200,-1450.99,0.00046575,120]
[377200009,1754289039210,-400.2841421,0.00046575,2]
[377200010,1754289039220,-400.0,0.00046575,120]
[377200011,1754289039229,-991.66,0.00046575,120]
[377200012,1754289039239,-726.92,0.00046575,120]
[377200013,1754289039249,-400.0,0.00046575,2]
[377200014,1754289039258,-400.0,0.00046575,120]
[377200015,1754289039268,-400.0,0.00046575,120]
[377200016,1754289039277,-400.0,0.00046575,120]
[377200017,1754289039287,-2769.33,0.00046575,120]
[377200018,1754289039296,-660.28,0.00046575,120]
[377200019,1754289039306,-400.0,0.00046575,120]
[377200020,1754289039316,-400.0,0.00046575,120]
[377200021,1754289039326,-400.0,0.00046575,120]
[377200022,1754289039336,-400.0,0.00046575,2]
[377200023,1754289039345,-400.0,0.00046575,120]
[377200024,1754289039355,-400.0,0.00046575,120]
[377200025,1754289039364,-400.0,0.00046575,120]
[377200026,1754289039374,-400.0,0.00046575,120]
[377200027,1754289039384,-400.0,0.00046575,120]
[377200028,1754289039394,-500.0,0.00046575,30]
[377200029,1754289039405,-500.0,0.00046575,30]
[377200030,1754289039416,-500.0,0.00046575,30]
[377200031,1754289039428,-500.0,0.00046575,30]
[377200032,1754289039438,-500.0,0.00046575,30]
[377200033,1754289039449,-500.0,0.00046575,30]
[377200034,1754289039460,-500.0,0.00046575,30]
[377200035,1754289039470,-500.0,0.00046575,30]
[377200036,1754289039481,-500.0,0.00046575,30]
[377200037,1754289039491,-500.0,0.00046575,30]
[377200038,1754289039501,-500.0,0.00046575,30]
[377200039,1754289039511,-500.0,0.00046575,30]
[377200040,1754289039522,-500.0,0.00046575,30]
[377200041,1754289039532,-500.0,0.00046575,30]
[377200042,1754289039542,-500.0,0.00046575,30]
[377200043,1754289039552,-500.0,0.00046575,30]
[377200044,1754289039561,-500.0,0.00046575,30]
[377200045,1754289039573,-500.0,0.00046575,30]
[377200046,1754289039585,-500.0,0.00046575,30]
[377200047,1754289039595,-500.0,0.00046575,30]
[377200048,1754289039605,-500.0,0.00046575,30]
[377200049,1754289039617,-500.0,0.00046575,30]
[377200050,1754289039627,-500.0,0.00046575,30]
[377200051,1754289039638,-500.0,0.00046575,30]
[377200052,1754289039649,-500.0,0.00046575,30]
[377200053,1754289039659,-500.0,0.00046575,30]
[377200054,1754289039670,-500.0,0.00046575,30]
[377200055,1754289039681,-500.0,0.00046575,30]
[377200056,1754289039691,-500.0,0.00046575,30]
[377200058,1754289039700,-500.0,0.00046575,30]
[377200059,1754289039710,-500.0,0.00046575,30]
[377200060,1754289039720,-500.0,0.00046575,30]
[377200061,1754289039730,-500.0,0.00046575,30]
[377200062,1754289039739,-500.0,0.00046575,30]
[377200063,1754289039749,-500.0,0.00046575,30]
[377200065,1754289039758,-500.0,0.00046575,30]
[377200067,1754289039769,-500.0,0.00046575,30]
[377200068,1754289039779,-500.0,0.00046575,30]
[377200069,1754289039789,-500.0,0.00046575,30]
[377200070,1754289039799,-500.0,0.00046575,30]
[377200071,1754289039810,-500.0,0.00046575,30]
[377200072,1754289039823,-500.0,0.00046575,30]
[377200073,1754289039834,-500.0,0.00046575,30]
[377200074,1754289039845,-500.0,0.00046575,30]
[377200075,1754289039854,-500.0,0.00046575,30]
[377200076,1754289039865,-500.0,0.00046575,30]
[377200077,1754289039875,-500.0,0.00046575,30]
[377200078,1754289039885,-500.0,0.00046575,30]
[377200079,1754289039894,-500.0,0.00046575,30]
[377200080,1754289039904,-500.0,0.00046575,30]
[377200081,1754289039914,-500.0,0.00046575,30]
[377200082,1754289039924,-500.0,0.00046575,30]
[377200083,1754289039934,-500.0,0.00046575,30]
[377200084,1754289039943,-500.0,0.00046575,30]
[377200085,1754289039954,-500.0,0.00046575,30]
[377200086,1754289039964,-500.0,0.00046575,30]
[377200087,1754289039973,-500.0,0.00046575,30]
[377200088,1754289039989,-500.0,0.00046575,30]
[377200089,1754289039999,-500.0,0.00046575,30]
[377200090,1754289040008,-500.0,0.00046575,30]
[377200091,1754289040018,-500.0,0.00046575,30]
[377200092,1754289040027,-500.0,0.00046575,30]
[377200093,1754289040038,-500.0,0.00046575,30]
[377200094,1754289040047,-500.0,0.00046575,30]
[377200095,1754289040057,-500.0,0.00046575,30]
[377200096,1754289040066,-500.0,0.00046575,30]
[377200097,1754289040075,-500.0,0.00046575,30]
[377200098,1754289040085,-500.0,0.00046575,30]
[377200099,1754289040094,-500.0,0.00046575,30]
[377200100,1754289040104,-500.0,0.00046575,30]
[377200101,1754289040112,-500.0,0.00046575,30]
[377200102,1754289040121,-500.0,0.00046575,30]
[377200103,1754289040131,-282.0,0.00046575,30]
[377200104,1754289040140,-1123.0,0.00046575,120]
[377200105,1754289040149,-150.27895732,0.0004658,120]
[377200106,1754289040158,-2100.0,0.000466,17]
[377200107,1754289040176,-400.0,0.00046639,120]
[377200108,1754289040186,-1558.36,0.00046639,120]
[377200109,1754289040195,-400.0,0.00046639,120]
[377200110,1754289040205,-400.0,0.00046639,120]
[377200112,1754289040214,-400.0,0.00046639,120]
[377200113,1754289040223,-400.0,0.00046639,120]
[377200114,1754289040234,-400.0,0.00046639,120]
[377200115,1754289040243,-400.0,0.00046639,120]
[377200116,1754289040253,-400.0,0.00046639,120]
[377200117,1754289040262,-400.0,0.00046639,120]
[377200118,1754289040272,-400.0,0.00046639,120]
[377200119,1754289040281,-400.0,0.00046639,120]
[377200120,1754289040290,-482.46354206,0.00046639,120]
[377200121,1754289040300,-400.0,0.00046639,120]
[377200122,1754289040310,-400.0,0.00046639,120]
[377200123,1754289040321,-400.0,0.00046639,120]
[377200124,1754289040331,-400.0,0.00046639,120]
[377200125,1754289040340,-400.0,0.00046639,120]
[377200126,1754289040351,-402.74180373,0.00046639,120]
[377200127,1754289040360,-400.0,0.00046639,120]
[377200128,1754289040370,-400.0,0.00046639,10]
[377200129,1754289040379,-400.65360633,0.00046639,120]
[377200130,1754289040389,-400.0,0.00046639,120]
[377200131,1754289040399,-400.0,0.00046639,120]
[377200132,1754289040408,-400.0,0.00046639,120]
[377200133,1754289040418,-400.0,0.00046639,120]
[377200134,1754289040428,-1186.03874,0.0004664,33]
[377200135,1754289040437,-1186.03874,0.0004664,33]
[377200136,1754289040447,-1186.03874,0.0004664,33]
[377200137,1754289040804,-1186.03874,0.0004664,33]
[377200138,1754289040814,-2460.12882164,0.00046647,15]
[377200139,1754289040827,-1952.45126,0.0004665,2]
[377200140,1754289040836,-638.01,0.00046674,120]
[377200141,1754289040846,-2460.12882163,0.00046675,15]
[377200142,1754289040857,-1402.44625396,0.00046679,2]
[377200143,1754289040867,-2700.0,0.000467,17]
[377200144,1754289040876,-3114.52037239,0.000467,45]
[377200145,1754289040886,-2460.12882163,0.00046703,15]
[377200146,1754289040896,-158.8,0.0004671,120]
[377200147,1754289040906,-2460.12882163,0.00046731,15]
[377200148,1754289040915,-11602.4762726,0.00046737,3]
[377200149,1754289040924,-23204.9525453,0.00046738,3]
[377200150,1754289040934,-244.1201044,0.00046738,24]
[377200151,1754289040944,-244.12010438,0.00046743,24]
[377200152,1754289040954,-1753.77,0.00046747,120]
[377200153,1754289040965,-1284.93,0.00046747,120]
[377200154,1754289040974,-846.14,0.00046747,120]
[377200155,1754289040985,-1423.74,0.00046747,120]
[377200156,1754289040995,-3224.08,0.00046747,120]
[377200157,1754289041005,-1077.34,0.00046747,120]
[377200158,1754289041015,-1579.74,0.00046747,120]
[377200159,1754289041026,-1213.0,0.00046747,120]
[377200160,1754289041036,-401.40129705,0.00046747,120]
[377200161,1754289041048,-400.0,0.00046747,120]
[377200162,1754289041060,-599.37,0.00046747,120]
[377200163,1754289041069,-400.0,0.00046747,120]
[377200164,1754289041079,-400.0,0.00046747,120]
[377200165,1754289041089,-156.609953,0.00046747,120]
[377200166,1754289041099,-400.0,0.00046747,120]
[377200167,1754289041108,-181.000593,0.00046747,120]
[377200168,1754289041120,-1321.48,0.00046747,120]
[377200169,1754289041130,-2046.185992,0.00046747,120]
[377200170,1754289041140,-1763.930686,0.00046747,120]
[377200171,1754289041151,-1966.048708,0.00046747,120]
[377200172,1754289041162,-156.985334,0.00046747,120]
[377200173,1754289041173,-453.31,0.00046747,120]
[377200174,1754289041183,-1156.89,0.00046747,120]
[377200175,1754289041192,-6079.66,0.00046747,120]
[377200176,1754289041202,-506.23,0.00046747,120]
[377200177,1754289041211,-400.0,0.00046747,120]
[377200178,1754289041221,-400.0,0.00046747,120]
[377200179,1754289041230,-400.0,0.00046747,120]
[377200180,1754289041239,-490.04,0.00046747,120]
[377200181,1754289041248,-1210.11,0.00046747,120]
[377200182,1754289041257,-595.9,0.00046747,120]
[377200183,1754289041266,-411.8,0.00046747,120]
[377200184,1754289041275,-830.97,0.00046747,120]
[377200185,1754289041284,-400.0,0.00046747,120]
[377200186,1754289041293,-400.0,0.00046748,120]
[377200187,1754289041303,-400.0,0.00046748,120]
[377200188,1754289041312,-400.0,0.00046748,120]
[377200189,1754289041321,-400.0,0.00046748,120]
[377200190,1754289041331,-500.0,0.00046748,120]
[377200191,1754289041340,-400.0,0.00046748,120]
[377200192,1754289041349,-301.05795022,0.00046748,120]
[377200193,1754289041358,-400.0,0.00046748,120]
[377200194,1754289041368,-400.0,0.00046748,120]
[377200195,1754289041378,-402.9731616,0.00046748,120]
[377200196,1754289041387,-400.0,0.00046748,120]
[377200197,1754289041397,-400.0,0.00046748,120]
[377200198,1754289041406,-400.0,0.00046748,120]
[377200199,1754289041415,-400.0,0.00046748,120]
[377200200,1754289041425,-400.0,0.00046748,120]
[377200201,1754289041435,-400.0,0.00046748,120]
[377200202,1754289041445,-400.0,0.00046748,120]
[377200203,1754289041454,-400.0,0.00046748,120]
[377200204,1754289041464,-400.0,0.00046748,120]
[377200205,1754289041474,-504.02318018,0.00046748,120]
[377200206,1754289041484,-400.0,0.00046748,120]
[377200207,1754289041494,-400.0,0.00046748,120]
[377200208,1754289041504,-400.0,0.00046748,120]
[377200209,1754289041515,-400.0,0.00046748,120]
[377200210,1754289041526,-400.0,0.00046748,120]
[377200211,1754289041535,-1982.18,0.00046748,120]
[377200212,1754289041546,-2314.74,0.00046748,120]
[377200213,1754289041555,-1575.26,0.00046748,120]
[377200214,1754289041565,-646.77,0.00046748,120]
[377200215,1754289041574,-1891.51,0.00046748,120]
[377200216,1754289041585,-1174.41,0.00046748,120]
[377200217,1754289041595,-442.61,0.00046748,120]
[377200218,1754289041605,-400.0,0.00046748,120]
[377200219,1754289041615,-400.0,0.00046748,120]
[377200220,1754289041626,-400.0,0.00046748,120]
[377200221,1754289041636,-400.0,0.00046748,120]
[377200222,1754289041646,-400.0,0.00046748,120]
[377200223,1754289041656,-400.0,0.00046748,20]
[377200224,1754289041666,-543.09,0.00046748,120]
[377200225,1754289041676,-1465.34,0.00046748,120]
[377200226,1754289041688,-545.82,0.00046748,120]
[377200227,1754289041698,-400.0,0.00046748,120]
[377200228,1754289041708,-400.0,0.00046748,120]